fUSD/lending_fUSD_20251031
["ID","MTS","AMOUNT","RATE_DAILY","PERIOD"]
[392727204,1761873039923,-595.37131296,0.00015539,2]
[392727205,1761873039932,-250.0,0.00015544,2]
[392727206,1761873039942,-300.0,0.00015544,2]
[392727207,1761873039951,-196.20155853,0.00015544,2]
[392727208,1761873039960,-300.0,0.00015544,2]
[392727209,1761873039969,-150.0,0.00015547,2]
[392727210,1761873039979,-150.0,0.00015547,2]
[392727211,1761873039988,-250.0,0.00015575,2]
[392727212,1761873039998,-300.0,0.00015575,2]
[392727213,1761873040007,-195.0,0.00015575,2]
[392727214,1761873040016,-166.39,0.00015602,2]
[392727215,1761873040025,-420.0,0.00015613,2]
[392727216,1761873040035,-345.0,0.00015629,2]
[392727217,1761873040044,-838.76,0.00015632,2]
[392727218,1761873040053,-255.0,0.00015654,2]
[392727219,1761873040063,-150.00000016,0.00015676,2]
[392727220,1761873040072,-500.0,0.00015676,2]
[392727221,1761873040082,-1680.0,0.0001568,2]
[392727222,1761873040091,-189.10068562,0.00015684,2]
[392727223,1761873040100,-150.0,0.00015684,2]
[392727224,1761873040110,-174.0,0.00015719,2]
[392727225,1761873040120,-252.55,0.0001575,2]
[392727226,1761873040129,-246.0,0.00015772,2]
[392727227,1761873040139,-246.0,0.00015772,2]
[392727228,1761873040148,-246.0,0.00015782,2]
[392727229,1761873040158,-500.0,0.00015813,2]
[392727230,1761873040168,-246.0,0.00015842,2]
[392727231,1761873040178,-246.0,0.00015843,2]
[392727232,1761873040187,-1387.09069,0.0001585,2]
[392727233,1761873040197,-838.76,0.00015906,2]
[392727234,1761873040206,-1000.0,0.00015918,2]
[392727235,1761873040216,-330.4,0.00015929,2]
[392727236,1761873040225,-500.0,0.0001595,2]
[392727237,1761873040235,-246.0,0.00015956,2]
[392727238,1761873040245,-246.0,0.00015996,2]
[392727239,1761873040254,-246.0,0.00016002,2]
[392727240,1761873040264,-289.4042325,0.00016011,2]
[392727241,1761873040273,-477.13749083,0.00016033,2]
[392727242,1761873040282,-1500.0,0.00016068,2]
[392727243,1761873040292,-166.39,0.00016085,2]
[392727244,1761873040302,-500.0,0.00016087,2]
[392727245,1761873040311,-617.40005154,0.00016087,2]
[392727246,1761873040321,-500.0,0.00016175,2]
[392727247,1761873040330,-500.0,0.00016175,2]
[392727249,1761873040339,-500.0,0.00016175,2]
[392727251,1761873040348,-161.02786738,0.00016175,2]
[392727253,1761873040357,-500.0,0.00016175,2]
[392727255,1761873040367,-838.76,0.0001618,2]
[392727257,1761873040377,-246.0,0.00016209,2]
[392727259,1761873040387,-502.76412041,0.00016224,2]
[392727261,1761873040396,-246.0,0.00016269,2]
[392727264,1761873040405,-1544.50493837,0.00016283,2]
[392727266,1761873040415,-1425.0,0.00016302,2]
[392727268,1761873040424,-1425.0,0.00016307,2]
[392727270,1761873040433,-246.0,0.00016379,2]
[392727272,1761873040442,-1425.0,0.00016395,2]
[392727274,1761873040451,-1238.0,0.000164,2]
[392727276,1761873040460,-1238.0,0.000164,2]
[392727278,1761873040470,-1238.0,0.000164,2]
[392727280,1761873040479,-1238.0,0.000164,2]
[392727282,1761873040489,-168.0,0.000164,2]
[392727284,1761873040498,-300.30372304,0.000164,2]
[392727286,1761873040510,-150.0,0.00016438,2]
[392727288,1761873040519,-2435.28,0.00016438,2]
[392727290,1761873040531,-500.0,0.00016438,2]
[392727292,1761873040542,-163.17,0.0001644,2]
[392727293,1761873040552,-163.17,0.0001644,2]
[392727295,1761873040561,-163.17,0.0001644,2]
[392727297,1761873040570,-163.17,0.0001644,2]
[392727299,1761873040579,-163.17,0.0001644,2]
[392727301,1761873040590,-838.76126583,0.00016454,2]
[392727303,1761873040603,-2665.54236695,0.000165,2]
[392727305,1761873040612,-1238.0,0.000165,2]
[392727307,1761873040622,-1238.0,0.000165,2]
[392727309,1761873040632,-409.26683856,0.000165,2]
[392727311,1761873040641,-152.0,0.000165,2]
[392727313,1761873040651,-152.0,0.000165,2]
[392727315,1761873040660,-252.55,0.00016537,2]
[392727317,1761873040669,-289.4042325,0.00016567,2]
[392727319,1761873040678,-164.09210656,0.00016567,2]
[392727321,1761873040687,-166.39,0.00016568,2]
[392727323,1761873040696,-150.0,0.00016575,2]
[392727325,1761873040704,-2000.0,0.00016616,2]
[392727327,1761873040714,-160.54857233,0.00016625,2]
[392727329,1761873040723,-500.0,0.00016625,2]
[392727331,1761873040732,-506.84605553,0.00016625,2]
[392727333,1761873040741,-500.0,0.00016625,2]
[392727335,1761873040750,-503.50935515,0.00016625,2]
[392727338,1761873040759,-327.74198954,0.00016625,2]
[392727339,1761873040769,-176.55605762,0.00016625,2]
[392727342,1761873040778,-501.53866475,0.00016625,2]
[392727344,1761873040787,-500.0,0.00016625,2]
[392727346,1761873040796,-500.0,0.00016625,2]
[392727347,1761873040805,-500.0,0.00016625,2]
[392727349,1761873040815,-500.0,0.00016625,2]
[392727351,1761873040824,-500.0,0.00016625,2]
[392727353,1761873040834,-160.46710559,0.00016633,2]
[392727355,1761873040843,-226.5152516,0.00016633,2]
[392727357,1761873040853,-500.0,0.00016633,2]
[392727359,1761873040862,-509.07798419,0.00016633,2]
[392727361,1761873040872,-500.0,0.00016633,2]
[392727363,1761873040881,-500.26530674,0.00016633,2]
[392727365,1761873040890,-500.81918272,0.00016633,2]
[392727367,1761873040900,-554.52561748,0.00016633,2]
[392727369,1761873040909,-504.51089229,0.00016633,2]
[392727371,1761873040919,-500.0,0.00016633,2]
[392727373,1761873040928,-500.0,0.00016633,2]
[392727375,1761873040937,-640.24385345,0.00016635,2]
[392727377,1761873040946,-200.0,0.00016712,2]
[392727379,1761873040956,-190.52,0.00016712,2]
[392727381,1761873040965,-985.9077356,0.00016723,2]
[392727383,1761873040974,-1000.0,0.00016723,2]
[392727385,1761873040983,-284.82318934,0.00016723,2]
[392727387,1761873040992,-300.0,0.00016774,2]
[392727389,1761873041002,-1387.09068,0.0001685,2]
[392727391,1761873041011,-433.0,0.00016861,2]
[392727393,1761873041020,-1399.239277,0.000169,2]
[392727395,1761873041029,-11666.1557332,0.00016907,2]
[392727397,1761873041038,-310.36850769,0.00016907,2]
[392727400,1761873041058,-1065.59661061,0.00016907,2]
[392727402,1761873041067,-98.48735895,0.0001698,2]
[392727404,1761873041078,-68.17264105,0.0001698,2]
[392727406,1761873041087,-333.06438876,0.0001698,2]
[392727408,1761873041096,-250.0,0.00017,2]
[392727410,1761873041105,-166.39,0.00017051,2]
[392727412,1761873041114,-587.0,0.000171,2]
[392727414,1761873041124,-136.59300694,0.00017122,2]
[392727424,1761873041200,-151.0,0.00015045,2]
[392727426,1761873041209,-152.81122556,0.00017122,2]
[392727428,1761873041218,-2500.0,0.00017164,2]
[392727430,1761873041227,-1000.0,0.00017173,2]
[392727431,1761873041236,-1000.0,0.00017173,2]
[392727433,1761873041246,-500.0,0.00017173,2]
[392727435,1761873041255,-662.39363845,0.00017173,2]
[392727437,1761873041264,-511.81722946,0.00017173,2]
[392727439,1761873041273,-1000.0,0.00017173,2]
[392727441,1761873041283,-502.11185109,0.00017173,2]
[392727442,1761873041292,-1000.0,0.00017181,2]
[392727443,1761873041301,-503.99933234,0.00017181,2]
[392727444,1761873041310,-430.8688041,0.00017181,2]
[392727445,1761873041320,-1000.0,0.00017181,2]
[392727446,1761873041328,-663.93287602,0.00017183,2]
[392727447,1761873041338,-246.0,0.00017188,2]
[392727448,1761873041347,-2351.0,0.00017248,2]
[392727449,1761873041357,-1500.0,0.00017271,2]
[392727450,1761873041366,-246.0,0.00017273,2]
[392727452,1761873041376,-312.2124839,0.00017324,2]
[392727454,1761873041385,-252.55,0.00017325,2]
[392727456,1761873041395,-2603.071197,0.00017332,2]
[392727458,1761873041404,-307.0193172,0.00017332,2]
[392727459,1761873041413,-246.0,0.00017355,2]
[392727461,1761873041423,-6466.0,0.00017443,2]
[392727463,1761873041432,-6629.0,0.00017443,2]
[392727465,1761873041441,-558.0,0.00017443,2]
[392727467,1761873041451,-1000.0,0.00017534,2]
[392727470,1761873041460,-289.4042325,0.00017678,2]
[392727472,1761873041470,-1000.0,0.00017687,2]
[392727474,1761873041479,-330.4,0.00017699,2]
[392727476,1761873041488,-998.55063725,0.00017712,2]
[392727478,1761873041497,-1500.0,0.00017721,2]
[392727479,1761873041506,-500.0,0.00017721,2]
[392727482,1761873041516,-1360.69711852,0.00017721,2]
[392727484,1761873041526,-1185.13,0.00017728,2]
[392727486,1761873041539,-157.59658026,0.00017729,2]
[392727488,1761873041549,-688.49839244,0.00017731,2]
[392727490,1761873041558,-150.0,0.00017808,2]
[392727492,1761873041567,-768.47763589,0.00017819,2]
[392727494,1761873041576,-1387.09069,0.0001785,2]
[392727496,1761873041585,-3403.0,0.00017883,2]
[392727498,1761873041595,-150.0,0.00017945,2]
[392727500,1761873041604,-1317.35837838,0.00017965,2]
[392727502,1761873041613,-1317.35837838,0.00017965,2]
[392727504,1761873041623,-500.0,0.00017973,2]
[392727506,1761873041632,-500.0,0.00017973,2]
[392727508,1761873041642,-500.0,0.00017973,2]
[392727510,1761873041651,-500.0,0.00017973,2]
[392727512,1761873041660,-500.0,0.00017973,2]
[392727514,1761873041669,-500.0,0.00017973,2]
[392727516,1761873041678,-300.0,0.00017999,2]
[392727518,1761873041687,-300.0,0.00017999,2]
[392727520,1761873041697,-300.0,0.00017999,2]
[392727522,1761873041706,-56858.26696779,0.00018,2]
[392727524,1761873041715,-150.0,0.00018082,2]
[392727526,1761873041724,-625.93,0.00018082,2]
[392727528,1761873041734,-1761.61765184,0.000181,2]
[392727530,1761873041743,-252.55,0.00018112,2]
[392727532,1761873041752,-736.0,0.00018154,2]
[392727534,1761873041761,-289.4042325,0.00018233,2]
[392727536,1761873041770,-164.09210656,0.00018233,2]
[392727538,1761873041779,-713.97283296,0.00018279,2]
[392727540,1761873041788,-2722.54,0.00018356,2]
[392727542,1761873041797,-905.04434059,0.00018521,2]
[392727544,1761873041807,-311.98675031,0.00018521,2]
[392727546,1761873041817,-1005.16897293,0.00018521,2]
[392727548,1761873041826,-813.67868286,0.00018521,2]
[392727550,1761873041835,-1000.0,0.00018521,2]
[392727552,1761873041845,-1000.0,0.00018521,2]
[392727554,1761873041854,-254.55059774,0.0001863,2]
[392727556,1761873041863,-493.63,0.00018717,2]
[392727558,1761873041873,-823.0,0.0001873,2]
[392727560,1761873041883,-625.93,0.0001876,2]
[392727562,1761873041891,-289.4042325,0.00018789,2]
[392727564,1761873041901,-151.22,0.000188,2]
[392727566,1761873041911,-151.22,0.000188,2]
[392727568,1761873041920,-151.22,0.000188,2]
[392727570,1761873041929,-151.22,0.000188,2]
[392727572,1761873041938,-151.22,0.000188,2]
[392727574,1761873041948,-151.22,0.000188,2]
[392727576,1761873041957,-151.22,0.000188,2]
[392727579,1761873041970,-151.22,0.000188,2]
[392727580,1761873041980,-151.22,0.000188,2]
[392727583,1761873041989,-151.22,0.000188,2]
[392727585,1761873041999,-151.22,0.000188,2]
[392727586,1761873042009,-151.22,0.000188,2]
[392727588,1761873042018,-151.22,0.000188,2]
[392727590,1761873042027,-151.22,0.000188,2]
[392727593,1761873042037,-151.22,0.000188,2]
[392727595,1761873042046,-151.22,0.000188,2]
[392727597,1761873042056,-151.22,0.000188,2]
[392727599,1761873042065,-151.22,0.000188,2]
[392727601,1761873042075,-151.22,0.000188,2]
[392727603,1761873042084,-151.22,0.000188,2]
[392727605,1761873042094,-151.22,0.000188,2]
[392727607,1761873042104,-151.22,0.000188,2]
[392727609,1761873042113,-151.22,0.000188,2]
[392727611,1761873042123,-151.22,0.000188,2]
[392727613,1761873042132,-151.22,0.000188,2]
[392727615,1761873042141,-151.22,0.000188,2]
[392727617,1761873042151,-151.22,0.000188,2]
[392727619,1761873042160,-151.22,0.000188,2]
[392727621,1761873042169,-151.22,0.000188,2]
[392727623,1761873042178,-151.22,0.000188,2]
[392727625,1761873042187,-151.22,0.000188,2]
[392727627,1761873042196,-151.22,0.000188,2]
[392727629,1761873042205,-151.22,0.000188,2]
[392727631,1761873042214,-151.22,0.000188,2]
[392727633,1761873042224,-151.22,0.000188,2]
[392727635,1761873042233,-151.22,0.000188,2]
[392727636,1761873042242,-151.22,0.000188,2]
[392727638,1761873042251,-151.22,0.000188,2]
[392727640,1761873042261,-151.22,0.000188,2]
[392727643,1761873042270,-151.22,0.000188,2]
[392727645,1761873042279,-151.22,0.000188,2]
[392727647,1761873042288,-151.22,0.000188,2]
[392727649,1761873042297,-151.22,0.000188,2]
[392727651,1761873042307,-151.22,0.000188,2]
[392727653,1761873042315,-151.22,0.000188,2]
[392727655,1761873042324,-151.22,0.000188,2]
[392727657,1761873042334,-740.38982778,0.00018827,2]
[392727659,1761873042343,-1387.09068,0.0001885,2]
[392727661,1761873042351,-252.55,0.00018899,2]
[392727663,1761873042361,-529.0,0.00018973,2]
[392727665,1761873042370,-151.22,0.0001899,2]
[392727667,1761873042380,-151.22,0.0001899,2]
[392727669,1761873042389,-151.22,0.0001899,2]
[392727671,1761873042399,-300.0,0.00018999,2]
[392727673,1761873042408,-300.0,0.00018999,2]
[392727675,1761873042418,-1803.18524374,0.00019,5]
[392727677,1761873042426,-5116.82636747,0.00019,2]
[392727679,1761873042435,-700.0,0.00019,3]
[392727681,1761873042444,-83476.31615086,0.00019,2]
[392727683,1761873042453,-83476.31615086,0.00019,2]
[392727685,1761873042462,-506.07020067,0.00019,2]
[392727687,1761873042471,-1961.67999729,0.00019,2]
[392727689,1761873042480,-151.0,0.00019,2]
[392727691,1761873042489,-151.0,0.00019,2]
[392727693,1761873042498,-151.0,0.00019,2]
[392727695,1761873042507,-154.958546,0.00019,2]
[392727697,1761873042516,-151.0,0.00019,2]
[392727699,1761873042525,-151.0,0.00019,2]
[392727701,1761873042539,-168.892721,0.00019,2]
[392727703,1761873042548,-151.0,0.00019,2]
[392727705,1761873042557,-151.0,0.00019,2]
[392727708,1761873042566,-161.861199,0.00019,2]
[392727710,1761873042576,-151.0,0.00019,2]
[392727712,1761873042585,-300.0,0.00019,2]
[392727714,1761873042594,-153.035891,0.00019,2]
[392727716,1761873042603,-151.0,0.00019,2]
[392727718,1761873042615,-151.0,0.00019,2]
[392727745,1761873042827,-151.0,0.00019,2]
[392727746,1761873042836,-151.0,0.00019,2]
[392727747,1761873042847,-151.0,0.00019,2]
[392727748,1761873042856,-151.0,0.00019,2]
[392727749,1761873042866,-151.0,0.00019,2]
[392727750,1761873042876,-151.0,0.00019,2]
[392727751,1761873042886,-154.194433,0.00019,2]
[392727752,1761873042895,-151.0,0.00019,2]
[392727753,1761873042904,-151.0,0.00019,2]
[392727754,1761873042913,-151.0,0.00019,2]
[392727755,1761873042923,-151.0,0.00019,2]
[392727756,1761873042932,-151.0,0.00019,2]
[392727757,1761873042941,-151.0,0.00019,2]
[392727758,1761873042951,-151.0,0.00019,2]
[392727759,1761873042960,-151.0,0.00019,2]
[392727760,1761873042969,-217.008955,0.00019,2]
[392727761,1761873042978,-151.0,0.00019,2]
[392727762,1761873042987,-151.0,0.00019,2]
[392727763,1761873042996,-151.0,0.00019,2]
[392727764,1761873043005,-151.0,0.00019,2]
[392727765,1761873043015,-151.0,0.00019,2]
[392727766,1761873043024,-163.259379,0.00019,2]
[392727767,1761873043033,-151.0,0.00019,2]
[392727768,1761873043042,-151.0,0.00019,2]
[392727769,1761873043051,-176.313072,0.00019,2]
[392727770,1761873043060,-271.846906,0.00019,2]
[392727771,1761873043069,-151.0,0.00019,2]
[392727772,1761873043078,-151.0,0.00019,2]
[392727773,1761873043087,-151.0,0.00019,2]
[392727774,1761873043097,-151.0,0.00019,2]
[392727775,1761873043106,-151.0,0.00019,2]
[392727776,1761873043115,-151.0,0.00019,2]
[392727777,1761873043125,-151.0,0.00019,2]
[392727778,1761873043134,-151.0,0.00019,2]
[392727779,1761873043144,-151.0,0.00019,2]
[392727780,1761873043153,-151.0,0.00019,2]
[392727781,1761873043162,-151.0,0.00019,2]
[392727782,1761873043171,-151.0,0.00019,2]
[392727783,1761873043180,-151.0,0.00019,2]
[392727784,1761873043189,-151.0,0.00019,2]
[392727785,1761873043198,-151.0,0.00019,2]
[392727786,1761873043208,-151.0,0.00019,2]
[392727787,1761873043217,-170.610377,0.00019,2]
[392727788,1761873043226,-170.610377,0.00019,2]
[392727789,1761873043236,-170.610377,0.00019,2]
[392727791,1761873043245,-170.610377,0.00019,2]
[392727792,1761873043255,-151.0,0.00019,2]
[392727793,1761873043264,-151.0,0.00019,2]
[392727794,1761873043273,-151.0,0.00019,2]
[392727795,1761873043282,-151.0,0.00019,2]
[392727796,1761873043292,-151.0,0.00019,2]
[392727797,1761873043301,-155.469366,0.00019,2]
[392727798,1761873043310,-151.0,0.00019,2]
[392727799,1761873043319,-155.469366,0.00019,2]
[392727800,1761873043329,-151.0,0.00019,2]
[392727801,1761873043338,-155.469366,0.00019,2]
[392727802,1761873043348,-155.469366,0.00019,2]
[392727803,1761873043358,-154.172899,0.00019,2]
[392727804,1761873043367,-151.0,0.00019,2]
[392727805,1761873043377,-151.0,0.00019,2]
[392727806,1761873043387,-245.0,0.00019,2]
[392727807,1761873043396,-151.0,0.00019,2]
[392727808,1761873043405,-157.218322,0.00019,2]
[392727809,1761873043415,-158.89289,0.00019,2]
[392727810,1761873043424,-151.0,0.00019,2]
[392727811,1761873043434,-151.0,0.00019,2]
[392727812,1761873043443,-416.738081,0.00019,2]
[392727813,1761873043453,-151.0,0.00019,2]
[392727814,1761873043463,-416.738081,0.00019,2]
[392727815,1761873043472,-416.738081,0.00019,2]
[392727816,1761873043482,-416.738081,0.00019,2]
[392727817,1761873043492,-151.0,0.00019,2]
[392727818,1761873043501,-153.657073,0.00019,2]
[392727819,1761873043511,-151.0,0.00019,2]
[392727820,1761873043520,-151.0,0.00019,2]
[392727821,1761873043531,-284.475326,0.00019,2]
[392727822,1761873043544,-151.0,0.00019,2]
[392727823,1761873043553,-284.475326,0.00019,2]
[392727824,1761873043563,-1000.0,0.00019068,2]
[392727825,1761873043572,-1500.0,0.00019068,2]
[392727826,1761873043581,-932.14421905,0.00019178,2]
[392727827,1761873043591,-151.0,0.00019178,2]
[392727828,1761873043600,-151.0,0.00019178,2]
[392727829,1761873043610,-150.0,0.00019178,2]
[392727830,1761873043620,-289.4042325,0.00019344,2]
[392727831,1761873043629,-767.7842514,0.00019375,2]
[392727832,1761873043639,-1027.81952684,0.000194,14]
[392727833,1761873043648,-625.93,0.00019438,2]
[392727834,1761873043658,-1000.0,0.00019456,2]
[392727835,1761873043667,-330.4,0.00019469,2]
[392727836,1761873043676,-1252.0,0.0001955,2]
[392727837,1761873043685,-500.0,0.00019616,2]
[392727838,1761873043694,-675.583,0.00019653,2]
[392727839,1761873043703,-3419.0,0.00019653,2]
[392727840,1761873043712,-820.0,0.00019653,2]
[392727841,1761873043721,-1594.0,0.00019653,2]
[392727842,1761873043730,-1318.812,0.00019653,2]
[392727843,1761873043740,-821.0,0.00019653,2]
[392727844,1761873043749,-397.252,0.00019653,2]
[392727845,1761873043758,-986.03,0.00019675,2]
[392727846,1761873043768,-252.55,0.00019687,2]
[392727847,1761873043777,-2000.0,0.000197,2]
[392727848,1761873043786,-250.0,0.00019726,2]
[392727849,1761873043796,-156.587,0.00019726,2]
[392727850,1761873043806,-1387.09069,0.0001985,2]
[392727851,1761873043815,-4871.86477857,0.000199,3]
[392727852,1761873043825,-356.73637481,0.000199,2]
[392727853,1761873043835,-289.4042325,0.000199,2]
[392727854,1761873043845,-164.09210656,0.000199,2]
[392727855,1761873043854,-796.19226871,0.00019923,2]
[392727856,1761873043863,-150.0,0.00019948,2]
[392727857,1761873043873,-158.37,0.00019948,2]
[392727858,1761873043883,-300.0,0.00019949,2]
[392727859,1761873043892,-300.0,0.00019949,2]
[392727860,1761873043901,-233289.71542264,0.0001995,15]
[392727861,1761873043910,-27109.15981028,0.0001995,15]
[392727862,1761873043920,-238.36153408,0.00019999,2]
[392727863,1761873043929,-500.11638359,0.0002,7]
[392727864,1761873043938,-4653.60754803,0.0002,2]
[392727865,1761873043947,-201336.87893725,0.0002,5]
[392727866,1761873043956,-8300.0,0.0002,4]
[392727867,1761873043965,-3950.0,0.0002,2]
[392727868,1761873043974,-15991.15944164,0.0002,14]
[392727869,1761873043984,-7217.77537746,0.0002,2]
[392727870,1761873043994,-1034.67094114,0.0002,2]
[392727871,1761873044003,-8722.00493262,0.0002,2]
[392727872,1761873044012,-500.0,0.0002,5]
[392727873,1761873044021,-10152.32470641,0.0002,2]
[392727874,1761873044030,-210494.0,0.0002,7]
[392727875,1761873044039,-477.13749083,0.0002,7]
[392727876,1761873044049,-1300.0,0.0002,8]
[392727877,1761873044059,-906.123,0.0002,3]
[392727878,1761873044069,-800.0,0.0002,3]
[392727879,1761873044078,-158.090056,0.0002,7]
[392727880,1761873044087,-151.0,0.0002,7]
[392727881,1761873044097,-151.0,0.0002,7]
[392727882,1761873044106,-151.0,0.0002,7]
[392727883,1761873044116,-151.0,0.0002,7]
[392727884,1761873044126,-151.0,0.0002,7]
[392727885,1761873044136,-151.0,0.0002,7]
[392727886,1761873044145,-151.0,0.0002,7]
[392727887,1761873044155,-294.973664,0.0002,7]
[392727888,1761873044164,-151.0,0.0002,7]
[392727889,1761873044174,-238.80383,0.0002,7]
[392727890,1761873044183,-151.0,0.0002,7]
[392727891,1761873044193,-151.0,0.0002,7]
[392727892,1761873044202,-151.0,0.0002,7]
[392727893,1761873044212,-151.0,0.0002,7]
[392727894,1761873044221,-166.571214,0.0002,7]
[392727895,1761873044230,-151.0,0.0002,7]
[392727896,1761873044240,-151.0,0.0002,7]
[392727897,1761873044249,-151.0,0.0002,7]
[392727898,1761873044259,-151.0,0.0002,7]
[392727899,1761873044269,-151.0,0.0002,7]
[392727900,1761873044278,-151.0,0.0002,7]
[392727901,1761873044287,-151.0,0.0002,7]
[392727902,1761873044297,-151.0,0.0002,7]
[392727903,1761873044307,-151.0,0.0002,7]
[392727904,1761873044316,-151.0,0.0002,7]
[392727905,1761873044326,-151.0,0.0002,7]
[392727906,1761873044335,-153.646052,0.0002,7]
[392727907,1761873044345,-170.610377,0.0002,7]
[392727908,1761873044354,-170.610377,0.0002,7]
[392727909,1761873044364,-170.610377,0.0002,7]
[392727910,1761873044374,-170.610377,0.0002,7]
[392727911,1761873044387,-151.0,0.0002,7]
[392727912,1761873044396,-151.0,0.0002,7]
[392727913,1761873044406,-151.0,0.0002,7]
[392727914,1761873044416,-151.0,0.0002,7]
[392727915,1761873044425,-151.0,0.0002,7]
[392727916,1761873044435,-155.469366,0.0002,7]
[392727917,1761873044444,-151.0,0.0002,7]
[392727918,1761873044454,-155.469366,0.0002,7]
[392727919,1761873044463,-151.0,0.0002,7]
[392727920,1761873044472,-155.469366,0.0002,7]
[392727921,1761873044482,-155.469366,0.0002,7]
[392727922,1761873044491,-151.0,0.0002,7]
[392727923,1761873044500,-151.0,0.0002,7]
[392727924,1761873044510,-1000.0,0.0002,7]
[392727925,1761873044519,-151.0,0.0002,7]
[392727926,1761873044528,-158.413805,0.0002,7]
[392727927,1761873044543,-151.0,0.0002,7]
[392727928,1761873044552,-416.738081,0.0002,7]
[392727929,1761873044562,-416.738081,0.0002,7]
[392727930,1761873044571,-416.738081,0.0002,7]
[392727931,1761873044583,-416.738081,0.0002,7]
[392727932,1761873044592,-151.0,0.0002,7]
[392727933,1761873044602,-284.475326,0.0002,7]
[392727934,1761873044613,-151.0,0.0002,7]
[392727935,1761873044623,-284.475326,0.0002,7]
[392727936,1761873044632,-625.93,0.00020116,2]
[392727937,1761873044641,-548.05,0.00020187,2]
[392727938,1761873044651,-454.25449138,0.00020274,2]
[392727939,1761873044660,-162.380719,0.00020274,2]
[392727940,1761873044669,-6466.0,0.00020443,2]
[392727941,1761873044678,-6629.0,0.00020443,2]
[392727942,1761873044689,-558.0,0.00020443,2]
[392727943,1761873044699,-601.53352726,0.00020471,2]
[392727944,1761873044708,-252.55,0.00020474,2]
[392727945,1761873044718,-1152.0,0.00020514,2]
[392727946,1761873044727,-477.13749083,0.000206,7]
[392727947,1761873044736,-1096.24,0.00020771,2]
[392727948,1761873044746,-625.93,0.00020795,2]
[392727949,1761873044755,-168.3888056,0.00020822,2]
[392727950,1761873044764,-91587.60024616,0.000209,30]
[392727951,1761873044773,-477.13749083,0.000209,30]
[392727952,1761873044782,-493.63,0.00020908,2]
[392727953,1761873044791,-1000.0,0.00021,5]
[392727954,1761873044800,-7292.79384357,0.00021,2]
[392727955,1761873044810,-350.0,0.00021,2]
[392727956,1761873044820,-441.0,0.00021061,2]
[392727957,1761873044829,-3971.31,0.00021068,2]
[392727958,1761873044838,-1000.0,0.00021225,2]
[392727959,1761873044847,-330.4,0.00021239,2]
[392727960,1761873044856,-252.55,0.00021262,2]
[392727961,1761873044866,-174.61919141,0.0002137,2]
[392727962,1761873044876,-477.13749083,0.000215,30]
[392727963,1761873044886,-440.96703617,0.000215,2]
[392727964,1761873044895,-356.73637481,0.00021567,2]
[392727965,1761873044905,-14005.71,0.00021757,2]
[392727966,1761873044915,-9999.99,0.00021757,2]